Cogmind - Beta 14 @@@ ROGUE MODE // 2024.09.16 @ 04:23:42 // Winter2019/RPGLIKE Player: Toaster Result: Destroyed by as-92384 with Assembled Heavy Rifle Performance ------------- Evolutions (3) 1500 Regions Visited (5) 1000 Robots Destroyed (99) 495 Value Destroyed (3250) 3250 Prototype IDs (2) 40 Alien Tech Used (0) 0 Bonus (983) 983 TOTAL SCORE: 7268 Bonus ------- High Alert Combat Kills 483 Entered DSFs 500 Cogmind --------- Core Integrity 0/1350 Matter 300/300 Energy 40/445 System Corruption 0% Temperature Cool (50) Movement Rolling (108) Ox1 Location -7/DSF Parts ------- > --- POWER (2) -------- Improved Ion Engine Cooled Ion Engine > --- PROPULSION (3) --- Wheel Compact Wheel Compact Wheel > --- UTILITY (6) ------ Cooling System Improved Particle Charger Improved Light Armor Plating Improved Light Armor Plating Improved Light Armor Plating Improved Light Armor Plating > --- WEAPON (4) ------- Plasma Cannon Plasma Cannon Plasma Cannon Plasma Cannon > --- INVENTORY (1) ---- Weapon Cycler Peak State ------------ > --- POWER ------------ Improved Ion Engine Cooled Ion Engine > --- PROPULSION ------- Wheel Compact Wheel Compact Wheel > --- UTILITY ---------- Cooling System Improved Particle Charger Improved Light Armor Plating Improved Light Armor Plating Improved Light Armor Plating Improved Light Armor Plating > --- WEAPON ----------- Plasma Cannon Plasma Cannon Plasma Cannon Plasma Cannon > --- INVENTORY -------- Weapon Cycler [Rating: 43] Favorites ----------- Power Improved Ion Engine Engine Improved Ion Engine Power Core Light Nuclear Core Propulsion Compact Wheel Wheel Compact Wheel Utility Cooling System Device Cooling System Protection Light Armor Plating Weapon Advanced Beam Cannon Energy Gun Small Laser Energy Cannon Advanced Beam Cannon Build | -11 -10 -9 -8 -7 -7 ------- Run | Yrd Mat Mat Mat Fac DSF Slots Evolved 11 | 1 1 4 4 . 1 Power 1 | . . 1 . . . Propulsion 2 | . 1 . 1 . . Utility 5 | . . 2 2 . 1 Weapon 3 | 1 . 1 1 . . Parts Attached 42 | 4 3 17 12 . 6 Power 5 | 1 . 4 . . . Engine 4 | 1 . 3 . . . Core 1 | . . 1 . . . Reactor . | . . . . . . Propulsion 5 | 1 1 2 1 . . Treads . | . . . . . . Leg . | . . . . . . Wheel 5 | 1 1 2 1 . . Hover . | . . . . . . Flight . | . . . . . . Utility 21 | . 2 7 6 . 6 Device 10 | . 2 3 3 . 2 Storage . | . . . . . . Processor . | . . . . . . Hackware . | . . . . . . Protection 11 | . . 4 3 . 4 Artifact . | . . . . . . Weapon 11 | 2 . 4 5 . . Energy Gun 3 | 2 . 1 . . . Energy Cannon 8 | . . 3 5 . . Ballistic Gun . | . . . . . . Ballistic Cannon . | . . . . . . Launcher . | . . . . . . Special Weapon . | . . . . . . Impact Weapon . | . . . . . . Slashing Weapon . | . . . . . . Piercing Weapon . | . . . . . . Special Melee Weapon . | . . . . . . Unidentified Prototypes 2 | . . 2 . . . Parts Lost 3 | . . . 1 . 2 Power . | . . . . . . Propulsion . | . . . . . . Utility 3 | . . . 1 . 2 Weapon . | . . . . . . Highest Loss Streak 1 | . . . 1 . 1 To Critical Strikes . | . . . . . . Average Slot Usage (%) 95 | . 88 95 99 100 95 Engine 17 | . 18 20 15 14 13 Wheel 20 | . 19 21 19 21 20 Device 12 | . 12 11 12 14 13 Protection 13 | . . 13 21 21 21 Energy Gun 12 | . 37 12 . . . Energy Cannon 17 | . . 15 28 28 26 Peak Build Rating 43 | 4 8 21 35 35 43 Average Rating 19 | 2 5 15 28 35 39 On Entrance 17 | . 4 8 21 35 35 Naked Turns . | . . . . . . Heaviest Build 61 | 8 10 37 59 57 61 Greatest Support 57 | 10 20 42 52 52 57 Greatest Overweight (x) 2 | . . 2 1 1 1 Average Overweight (x) . | . . . . 1 . Largest Inventory Capacity 1 | . 1 1 1 1 1 Average Capacity . | . . 1 1 1 1 Most Carried 1 | . 1 1 1 . 1 Average Carried . | . . . . . . Final Capacity 1 | . 1 1 1 1 1 Final Carried 1 | . . 1 . . 1 Class Distribution -------------------- 37% | Mutant 37% | Tank 21% | Pyromaniac-Tank Dominant Class ---------------- Mutant | -10/Materials Tank | -9/Materials Tank | -8/Materials Pyromaniac-Tank | -7/Factory Pyromaniac-Tank | -7/DSF Resources | -11 -10 -9 -8 -7 -7 ----------- Run | Yrd Mat Mat Mat Fac DSF Matter Collected 680 | 240 105 170 115 . 50 Remotely . | . . . . . . Salvage Created 3989 | . 563 1035 1772 103 516 Parts 191 | . 26 78 82 3 2 Haulers Intercepted 5 | . 1 2 2 . . Recyclers Shooed 1 | . . 1 . . . Parts Field Recycled . | . . . . . . Retrieved Matter . | . . . . . . Parts Self-Destructed . | . . . . . . Prevented . | . . . . . . Kills | -11 -10 -9 -8 -7 -7 ------- Run | Yrd Mat Mat Mat Fac DSF Combat Hostiles Destroyed 105 | . 12 23 41 1 28 Guns 13 | . 10 3 . . . Cannons 82 | . . 19 36 1 26 Classes Destroyed 13 | . 5 2 3 . 3 Worker 3 | . 2 . 1 . . Hauler 5 | . 1 2 2 . . Operator 3 | . . 2 1 . . Watcher 8 | . 1 4 3 . . Swarmer 16 | . 3 7 6 . . Grunt 41 | . 9 9 23 . . Brawler 1 | . . . 1 . . Duelist 2 | . . . 2 . . Protector 1 | . . . 1 . . Sentry 16 | . . 7 8 1 . Specialist 2 | . . . . . 2 Heavy 1 | . . . . . 1 Assembled 25 | . . . . . 25 Best Kill Streak 12 | . 5 8 10 1 12 Combat Bots Only 12 | . 3 8 10 1 12 Max Kills in Single Turn 2 | . 1 1 2 1 2 Gunslinging . | . . . . . . Exploded . | . . . . . . Melee . | . . . . . . Uniques/NPCs Destroyed . | . . . . . . Combat | -11 -10 -9 -8 -7 -7 -------- Run | Yrd Mat Mat Mat Fac DSF Hostile Shots Fired 463 | . 62 58 158 9 176 Missed 142 | . 20 20 54 3 45 Damage Taken 4585 | . 499 458 1576 47 2005 Core 2999 | . 417 319 993 25 1245 Absorbed by Shields . | . . . . . . Redirected to Core 2557 | . 271 288 911 25 1062 Ignored by Resistances 113 | . . . . . 113 Core Remaining (%) 89 | 100 77 100 81 . . Volleys Fired 231 | . 66 50 82 1 32 Largest 4 | . 2 3 4 4 4 Hottest 320 | . 90 204 320 320 320 Shots Fired 668 | . 129 127 283 4 125 Gun 160 | . 129 31 . . . Cannon 508 | . . 96 283 4 125 Launcher . | . . . . . . Special . | . . . . . . Kinetic . | . . . . . . Thermal 668 | . 129 127 283 4 125 Explosive . | . . . . . . Electromagnetic . | . . . . . . Robot Hit Streak 32 | . 17 18 32 3 15 Robot Miss Streak 5 | . 5 4 4 1 2 Penetration Max . | . . . . . . Secondary Targets . | . . . . . . Shots Hit Robots 434 | . 89 74 197 3 71 Core Hits 173 | . 28 37 76 2 30 Critical Kills 6 | . . 1 5 . . Critical Parts Destroyed . | . . . . . . Critical Strikes 11 | . 4 2 5 . . Burn 5 | . 4 1 . . . Meltdown 6 | . . 1 5 . . Melee Attacks . | . . . . . . Impact . | . . . . . . Slashing . | . . . . . . Piercing . | . . . . . . Sneak Attacks . | . . . . . . Combat Hostiles . | . . . . . . Follow-up Attacks . | . . . . . . Damage Inflicted 9400 | . 1080 1365 4735 78 2142 Guns 1342 | . 1080 262 . . . Cannons 8058 | . . 1103 4735 78 2142 Explosions . | . . . . . . Melee . | . . . . . . Ramming . | . . . . . . Kinetic . | . . . . . . Thermal 9400 | . 1080 1365 4735 78 2142 Explosive . | . . . . . . Electromagnetic . | . . . . . . Impact . | . . . . . . Slashing . | . . . . . . Piercing . | . . . . . . Highest Corruption 2 | . 2 . . . . Average Corruption 1 | . 1 . . . . Corruption Purged . | . . . . . . Corruption Blocked . | . . . . . . Effects 5 | . 5 . . . . Message Errors 1 | . 1 . . . . Matter Fused 2 | . 2 . . . . Heat Flow Errors 1 | . 1 . . . . Energy Discharges 1 | . 1 . . . . Overload Shots . | . . . . . . Overflow Damage 160 | . . . 82 . 78 Projectiles 160 | . . . 82 . 78 Explosions . | . . . . . . Melee . | . . . . . . Knockbacks . | . . . . . . Impact . | . . . . . . Kinetic . | . . . . . . Secondary . | . . . . . . Self-Inflicted Damage . | . . . . . . Shots . | . . . . . . Rammed . | . . . . . . Targets Rammed . | . . . . . . Kicked . | . . . . . . Crushed . | . . . . . . Highest Temperature 408 | . 319 408 327 48 246 Average Temperature 97 | . 104 123 94 32 74 Received Heat Transfer 1522 | . 270 144 756 12 340 Effects 6 | . 2 4 . . . Energy Bleed 2 | . 1 1 . . . Interference 3 | . . 3 . . . Matter Decay 1 | . 1 . . . . Siege Activations . | . . . . . . Robots Corrupted . | . . . . . . Combat Hostiles . | . . . . . . Parts Fried . | . . . . . . Impact Corruptions . | . . . . . . Robots Melted 11 | . 3 1 5 . 2 Combat Hostiles 10 | . 2 1 5 . 2 Parts Melted 60 | . 6 8 37 2 7 Heat Transferred 18451 | . 3136 2766 8549 150 3850 Parts Sabotaged . | . . . . . . Parts Stolen . | . . . . . . Parts Stripped . | . . . . . . Power Chain Reactions . | . . . . . . Alert | -11 -10 -9 -8 -7 -7 ------- Run | Yrd Mat Mat Mat Fac DSF Peak Influence 815 | . 282 592 815 385 349 Initial 340 | . . 61 214 340 269 Average 324 | . 171 220 570 344 313 Maximum Alert Level 3 | . 1 2 3 1 1 Low Security (%) 34 | 100 55 59 . . . Level 1 30 | . 44 16 7 100 100 Level 2 26 | . . 23 63 . . Level 3 8 | . . . 29 . . Level 4 . | . . . . . . Level 5 . | . . . . . . High Security . | . . . . . . Max Security . | . . . . . . Squads Dispatched 16 | . 3 1 9 1 2 Investigation 3 | . . . 3 . . Extermination 1 | . . . . 1 . Reinforcement 7 | . 3 1 1 . 2 Assault 2 | . . . 2 . . Garrison 3 | . . . 3 . . Intercept . | . . . . . . Searches Triggered . | . . . . . . Construction Impeded . | . . . . . . Haulers Reinforced . | . . . . . . Active Scanning Responses . | . . . . . . Cargo Convoy Interrupts . | . . . . . . Stealth | -11 -10 -9 -8 -7 -7 --------- Run | Yrd Mat Mat Mat Fac DSF Distress Signals 7 | . 2 2 3 . . Communications Jammed . | . . . . . . Distress Signals . | . . . . . . Times Spotted 163 | . 25 33 49 1 55 Peak Tracking Total 21 | . 4 5 6 1 21 Tactical Retreats 8 | . 1 4 2 . 1 Traps | -11 -10 -9 -8 -7 -7 ------- Run | Yrd Mat Mat Mat Fac DSF Traps Triggered 5 | . 2 1 2 . . Indirectly . | . . . . . . Trap Hack Attempts . | . . . . . . Triggered . | . . . . . . Disarmed . | . . . . . . Reprogrammed . | . . . . . . Reused . | . . . . . . Traps Extracted . | . . . . . . Installed . | . . . . . . Triggered . | . . . . . . Machines | -11 -10 -9 -8 -7 -7 ---------- Run | Yrd Mat Mat Mat Fac DSF Machines Disabled 3 | . . 2 1 . . Max in Single Turn 1 | . . 1 1 . . Machines Repaired . | . . . . . . Machines Dismantled . | . . . . . . Machines Sabotaged . | . . . . . . Overloaded Fab Kills . | . . . . . . Hacking | -11 -10 -9 -8 -7 -7 --------- Run | Yrd Mat Mat Mat Fac DSF Machines Accessed 13 | . 3 5 3 2 . Terminals 13 | . 3 5 3 2 . Fabricators . | . . . . . . Repair Stations . | . . . . . . Recycling Units . | . . . . . . Scanalyzers . | . . . . . . Garrison Access . | . . . . . . Total Hacks 28 | . 7 10 6 5 . Successful 13 | . 5 5 1 2 . Failed 15 | . 2 5 5 3 . Catastrophic 3 | . . 2 1 . . Database Lockouts . | . . . . . . Manual . | . . . . . . Terminals 28 | . 7 10 6 5 . Fabricators . | . . . . . . Repair Stations . | . . . . . . Recycling Units . | . . . . . . Scanalyzers . | . . . . . . Garrison Access . | . . . . . . Terminal Hacks 13 | . 5 5 1 2 . Record 4 | . 2 2 . . . Open DSF 1 | . . . . 1 . Branch Access Points 1 | . . 1 . . . Alert Level 1 | . . . . 1 . Unreport Threat 1 | . . . 1 . . Locate Traps 2 | . 1 1 . . . Hauler Manifests 2 | . 1 1 . . . Zone Layout 1 | . 1 . . . . Fabricator Hacks . | . . . . . . Repair Station Hacks . | . . . . . . Recycling Unit Hacks . | . . . . . . Scanalyzer . | . . . . . . Garrison Access Hacks . | . . . . . . Unauthorized Hacks . | . . . . . . Terminals . | . . . . . . Fabricators . | . . . . . . Repair Stations . | . . . . . . Recycling Units . | . . . . . . Scanalyzers . | . . . . . . Garrison Access . | . . . . . . Data Cores Recovered 3 | . . 2 1 . . Used . | . . . . . . Hacking Detections 8 | . 2 2 3 1 . Full Trace Events 2 | . . 1 1 . . Feedback Events . | . . . . . . Feedback Blocked . | . . . . . . Robot Schematics Acquired . | . . . . . . Robots Built . | . . . . . . Authchips . | . . . . . . Time . | . . . . . . Total Robot Build Rating . | . . . . . . Part Schematics Acquired . | . . . . . . Parts Built . | . . . . . . Authchips . | . . . . . . Time . | . . . . . . Total Part Build Rating . | . . . . . . Parts Repaired . | . . . . . . Time . | . . . . . . Parts Recycled . | . . . . . . Recycled Matter . | . . . . . . Retrieved Matter . | . . . . . . Retrieved Components . | . . . . . . Parts Scanalyzed . | . . . . . . Part Schematics Acquired . | . . . . . . Parts Damaged . | . . . . . . Bothacking | -11 -10 -9 -8 -7 -7 ------------ Run | Yrd Mat Mat Mat Fac DSF Used RIF Installer . | . . . . . . Robots Hacked . | . . . . . . Non-combat . | . . . . . . Combat . | . . . . . . Robot Hacks Applied . | . . . . . . Relay Couplers Released . | . . . . . . Fabnet Peak Effective % . | . . . . . . Robots Rewired . | . . . . . . Allies Hacked . | . . . . . . Hacks Repelled . | . . . . . . Allies | -11 -10 -9 -8 -7 -7 -------- Run | Yrd Mat Mat Mat Fac DSF Total Allies . | . . . . . . Largest Group . | . . . . . . Highest-Rated Group . | . . . . . . Highest-Rated Ally . | . . . . . . Total Orders . | . . . . . . Ally Attacks . | . . . . . . Total Damage . | . . . . . . Kills . | . . . . . . Allies Corrupted . | . . . . . . Allies Melted . | . . . . . . Intel | -11 -10 -9 -8 -7 -7 ------- Run | Yrd Mat Mat Mat Fac DSF Robot Analysis Total . | . . . . . . Derelict Logs Recovered . | . . . . . . Drone Launches . | . . . . . . Drone Recoveries . | . . . . . . Exploration | -11 -10 -9 -8 -7 -7 ------------- Run | Yrd Mat Mat Mat Fac DSF Turns Passed 4708 | 40 1080 1608 1395 258 327 Spaces Moved 3776 | 48 1076 1229 1013 236 174 Core 12 | 12 . . . . . Treads . | . . . . . . Legs . | . . . . . . Wheels 3764 | 36 1076 1229 1013 236 174 Hover . | . . . . . . Flight . | . . . . . . Fastest Speed 50 | 50 80 80 93 108 93 Average Speed 92 | 72 80 91 102 108 100 Slowest Speed 115 | 80 80 115 115 108 108 Overloaded Moves . | . . . . . . Propulsion Burnouts . | . . . . . . Robots Hopped . | . . . . . . Cave-ins Triggered . | . . . . . . Exploration Rate (%) 52 | 3 99 67 57 9 82 Regions Visited 5 Branch Regions . Pre-discovered Areas . | . . . . . . Known Exits Taken 1 | . . . . 1 . Unknown Exits Taken 4 | 1 1 1 1 . . Scrap Searched . | . . . . . . Spaces Dug . | . . . . . . Terrain Destroyed 30 | . . . 29 . 1 Melee . | . . . . . . Projectile 30 | . . . 29 . 1 AOE . | . . . . . . Terrain Rammed . | . . . . . . Walls Destroyed . | . . . . . . Machines Disabled . | . . . . . . Actions | -11 -10 -9 -8 -7 -7 --------- Run | Yrd Mat Mat Mat Fac DSF Total 4495 | 51 1165 1612 1174 236 257 Wait 339 | . 6 281 18 . 34 Move 3771 | 47 1075 1228 1012 235 174 Hop . | . . . . . . Pick Up 4 | . 1 2 1 . . Fast Attach 35 | 4 3 12 10 . 6 Attach 3 | . . 2 1 . . Detach 6 | . . 2 2 . 2 Swap 4 | . . 3 1 . . Drop 21 | . 2 10 7 . 2 Fire 231 | . 66 50 82 1 32 Melee . | . . . . . . Ram . | . . . . . . Kick . | . . . . . . Crush . | . . . . . . Escape Stasis . | . . . . . . Rewire . | . . . . . . Trap . | . . . . . . Miscellaneous 81 | . 12 22 40 . 7 Route ------- -11/Scrapyard -10/Materials (discovered 5 exits: *Mat x3 / [*Min x2]) -9/Materials (discovered 2 exits: *Mat / *Min) -8/Materials (discovered 2 exits: *Fac x2) -7/Factory -7/DSF (discovered 1 exit: [*Fac]) History --------- Turn | Location | Event 14 | -11/Scrapyard | Upgraded with Weapon slot (x1) 17 | -11/Scrapyard | Discovered new exit (range 16) 41 | -11/Scrapyard | Entered Materials 99 | -10/Materials | Discovered new exit (range 8) 250 | -10/Materials | Discovered new exit (range 8) 309 | -10/Materials | Build established: Mutant 593 | -10/Materials | Reached level 2 633 | -10/Materials | Discovered new exit (range 3) 710 | -10/Materials | Discovered new exit (range 16) 810 | -10/Materials | Upgraded with Propulsion slot (x1) 973 | -10/Materials | Discovered new exit (range 16) 1121 | -10/Materials | Entered another Materials area 1123 | -9/Materials | Reached level 3 1196 | -9/Materials | Upgraded with Utility slot (x1) 1200 | -9/Materials | Upgraded with Power slot (x1) 1200 | -9/Materials | Upgraded with Weapon slot (x1) 1780 | -9/Materials | Discovered new exit (range 9) 2083 | -9/Materials | Build established: Tank 2094 | -9/Materials | Reached level 4 2103 | -9/Materials | Core integrity fell below 50% 2137 | -9/Materials | Destroyed 8 combat bots 2146 | -9/Materials | Upgraded with Utility slot (x1) 2420 | -9/Materials | Identified exit to Mines 2564 | -9/Materials | Discovered new exit (range 12) 2571 | -9/Materials | Reached level 5 2729 | -9/Materials | Entered another Materials area 2731 | -8/Materials | Reached level 6 2843 | -8/Materials | Reached level 7 2935 | -8/Materials | Discovered new exit (range 7) 3064 | -8/Materials | Destroyed 9 combat bots 3076 | -8/Materials | Upgraded with Utility slot (x1) 3148 | -8/Materials | Upgraded with Utility slot (x1) 3309 | -8/Materials | Reached level 8 3324 | -8/Materials | Upgraded with Propulsion slot (x1) 3326 | -8/Materials | Upgraded with Weapon slot (x1) 3529 | -8/Materials | First assault squad dispatched 3628 | -8/Materials | Garrison activated, responded to threat 3653 | -8/Materials | Core integrity fell below 50% 3682 | -8/Materials | Core integrity fell below 20% 3691 | -8/Materials | Reached level 9 3725 | -8/Materials | Destroyed 10 combat bots 3790 | -8/Materials | Discovered new exit (range 10) 4048 | -8/Materials | Build established: Pyromaniac-Tank 4124 | -8/Materials | Entered Factory 4126 | -7/Factory | Reached level 10 4381 | -7/Factory | Identified exit to DSF 4382 | -7/Factory | Entered DSF 4382 | -7/DSF | Reached level 11 4392 | -7/DSF | Assembled infested the area 4393 | -7/DSF | Upgraded with Utility slot (x1) 4412 | -7/DSF | Additional patrols routed to DSF 4442 | -7/DSF | Reached level 12 4571 | -7/DSF | Discovered new exit (range 16) 4635 | -7/DSF | Destroyed 9 combat bots 4686 | -7/DSF | Core integrity fell below 50% 4700 | -7/DSF | Core integrity fell below 20% 4709 | -7/DSF | Destroyed by as-92384 with Assembled Heavy Rifle Last Messages --------------- 04667_ as-85249 destroyed. 04670_ as-18899 destroyed. 04670_ as-61686 destroyed. 04674_ Destroyed Asb. Hover Unit. 04674_ as-42410 destroyed. 04684_ Destroyed Asb. F-torch. 04684_ as-78356 destroyed. 04690_ as-58378 destroyed. 04693_ Upgraded: KI Resistance % (+20) 04693_ as-31992 destroyed. 04694_ as-00211 destroyed. 04697_ as-07651 destroyed. 04700_ as-58613 destroyed. 04700_ as-16229 destroyed. 04701_ as-46425 destroyed. 04704_ Destroyed Asb. Hover Unit. 04704_ as-35289 destroyed. 04704_ as-88033 destroyed. 04708_ Critical hit (Destroy). 04709_ as-74414 destroyed. Map ----- +----------------------------------------------------+ | | | | | | | | | | | | | | | | | | | | | | | | | ?????????????????????????????????????????????? | | ?????????????????????????????????????????????? | | ?????????????????????????????????????????????? | | ?????????????????????????????????????????????? | | ?????????????????????????????????????????????? | | ?????????????????????????????????????????????? | | ????????????????????#########????????????????? | | ????????????????????#!! !!#####??##""" " #?? | | ????????????????????#!! !!#!!!#! % #?? | | ????????????????????# %<""#??? | | ????????????????????# %% %? % % %%? | | ????????????????????###%%%###!!!#! #??? | | ????????????????????### %a###!!!#?????? #??? | | ????????????????????#@aaa !!#####????????????? | | ????????????????????# %%a a!#????????????????? | | ????????????????????# aaaaa!#????????????????? | | ????????????????????###a%%###????????????????? | | ????????????????????#]] %%!!#????????????????? | | ????????????????????#]] %!!#??????? ????????? | | ????????????????????#]] %!!#?????# ???????? | | ??????################# ###?### ???????? | | ??????# ##!!!#!!!### % ##?=== !*% ???????? | | ??????# ! ##!!!#!!!## %# === ??????? | | ??????#! ??????? | | ??????# % = ??????? | | ??????# % % =%* ???????? | | ??????# ##***# !!## *[ #===##???????? | | ??????# ##***#!!!### %%###! #??=#????????? | | ??????### ############ #######????????????? | | ???????#! #??????#!! ]]#????????????????? | | ???????#! #??????#!! ]]#????????????????? | | ???????#! #??????#!! ]]#????????????????? | | ???????## ###??????### ###????????????????? | | ???????# #??????# #????????????????? | | ???????# #??????# #????????????????? | | ???????## ########## #????????????????? | | ??????### ### # ### ###????????????????? | | ????###"" ## # ### ###????????????????? | +----------------------------------------------------+ Best States ------------- Heat Dissipation 109 Energy Generation 21 Energy Capacity 445 Matter Stores 300 Matter Capacity 300 Sight Range 16 Robot Scan Range 10 Terrain Scan Density 10 ECM Strength 1 Armor Coverage 600 Resistance: KI 20 Weapon Cycling 15 Evasion (%) 44 Recoil Reduction 4 Particle Charging 20 Item Schematics ----------------- None Robot Schematics ------------------ None Fabricated ------------ Nothing Alien Tech Used ----------------- None Achievements -------------- None Challenges ------------ None RPGLIKE | -11 -10 -9 -8 -7 -7 --------- Run | Yrd Mat Mat Mat Fac DSF Levels Raised 11 | . 1 3 4 1 2 XP Earned 19542 | 3000 1570 4829 6893 1650 1600 XP Spent 19435 | 2700 960 5160 6015 . 4600 Upgrades 52 | 5 5 16 20 . 6 Power Slot 1 | . . 1 . . . Propulsion Slot 2 | . 1 . 1 . . Utility Slot 5 | . . 2 2 . 1 Weapon Slot 3 | 1 . 1 1 . . Core Integrity 15 | . . . 15 . . Heat Dissipation 8 | . 3 4 1 . . Mass Support 3 | . . 2 . . 1 Inventory Capacity 1 | . 1 . . . . Sensor Range 5 | . . 5 . . . Ranged Accuracy 5 | 4 . 1 . . . KI Resistance % 4 | . . . . . 4 Protomatter Created 1083 | . 107 236 659 . 81 Integrity Restored 1737 | . 279 457 842 . 159 Core 1641 | . 279 457 746 . 159 Parts 96 | . . . 96 . . Protomatter Decayed 496 | . 14 44 328 . 110 Game ------ Seed GyrokineticLinearFlail Manual? 0 Play Time 00:50:25 Cumulative 65.5 hours Start 2024.09.16 @ 03:35:33 End 2024.09.16 @ 04:23:42 Sessions 1 Manual Loads 0 Difficulty Rogue Special Mode Winter2019/RPGLIKE Game No. 26 Rogue 22 Adventurer 4 Explorer 0 Win Type - Total 1 Types 1/0/0/0/0/0/0/0/0 Lore% 25 Gallery% 37 Achievement% 43 Wizard Run 0 Options --------- Layout 0 ASCII 0 Keyboard 0 Movement Arrows Keybinds 0 Fullscreen 2 Font 32/SmallcapsGlow Map View 88x55 Zoom Use 0% Tactical HUD 1 Map Filters NONE Filters NONE Steam 1 RUN: 03e05801-13c6-4150-9f32-3c72dd4e1337